[Event "*** Titled Tuesday 3|2 Blitz (Early)"]
[Site "Chess.com"]
[Date "2016.12.06"]
[Round "4"]
[White "ZivkovicN"]
[Black "SCIM"]
[Result "1/2-1/2"]
[WhiteElo "2414"]
[BlackElo "2290"]
[TimeControl "180+2"]
[EndTime "11:49:32 PST"]
[Termination "Game drawn by repetition"]

1. e4 {[%clk 0:02:57.6]} 1... c5 {[%clk 0:02:59.1]} 2. Nf3 {[%clk 0:02:58.7]}
2... e6 {[%clk 0:02:59.1]} 3. c3 {[%clk 0:02:59.8]} 3... Nf6 {[%clk 0:02:58.6]}
4. d3 {[%clk 0:02:59.1]} 4... Nc6 {[%clk 0:02:58.4]} 5. Nbd2 {[%clk 0:03:00]}
5... d6 {[%clk 0:02:59.2]} 6. Be2 {[%clk 0:03:00.4]} 6... Be7 {[%clk 0:03:00.3]}
7. O-O {[%clk 0:03:02]} 7... O-O {[%clk 0:03:01.8]} 8. Re1 {[%clk 0:03:03.7]}
8... Bd7 {[%clk 0:03:02.6]} 9. Bf1 {[%clk 0:03:05.1]} 9... Qc7 {[%clk
0:03:02.6]} 10. a3 {[%clk 0:03:06]} 10... Rac8 {[%clk 0:03:03]} 11. b4 {[%clk
0:03:01.2]} 11... cxb4 {[%clk 0:02:50.6]} 12. cxb4 {[%clk 0:03:03.1]} 12... Ne5
{[%clk 0:02:47.1]} 13. Nxe5 {[%clk 0:02:59.9]} 13... dxe5 {[%clk 0:02:47.7]} 14.
Bb2 {[%clk 0:03:01]} 14... Bb5 {[%clk 0:02:27.6]} 15. Nc4 {[%clk 0:02:55.9]}
15... Bxc4 {[%clk 0:02:08.7]} 16. dxc4 {[%clk 0:02:57.8]} 16... a5 {[%clk
0:02:05]} 17. Qb3 {[%clk 0:02:55.8]} 17... axb4 {[%clk 0:02:05.1]} 18. axb4
{[%clk 0:02:57.7]} 18... Qb6 {[%clk 0:02:02.5]} 19. Bc3 {[%clk 0:02:46.8]} 19...
Rfd8 {[%clk 0:02:01.7]} 20. Rab1 {[%clk 0:02:43.5]} 20... Ng4 {[%clk 0:01:50.5]}
21. c5 {[%clk 0:02:40.7]} 21... Qc7 {[%clk 0:01:43.7]} 22. h3 {[%clk 0:02:38.3]}
22... Nf6 {[%clk 0:01:44.1]} 23. Qb2 {[%clk 0:02:37.3]} 23... Nd7 {[%clk
0:01:45]} 24. Bb5 {[%clk 0:02:36.7]} 24... Bf6 {[%clk 0:01:45.6]} 25. Red1
{[%clk 0:02:37.4]} 25... Nb8 {[%clk 0:01:45.4]} 26. Ra1 {[%clk 0:02:33.9]} 26...
Nc6 {[%clk 0:01:45.5]} 27. Bxc6 {[%clk 0:02:29.6]} 27... bxc6 {[%clk 0:01:45.1]}
28. Rxd8+ {[%clk 0:02:23.3]} 28... Rxd8 {[%clk 0:01:44.7]} 29. Qe2 {[%clk
0:02:21.4]} 29... h6 {[%clk 0:01:41.9]} 30. Ra6 {[%clk 0:02:17.3]} 30... Qd7
{[%clk 0:01:38.8]} 31. g3 {[%clk 0:02:11.7]} 31... Rb8 {[%clk 0:01:22.5]} 32.
Kg2 {[%clk 0:02:11.1]} 32... Kh7 {[%clk 0:01:15.5]} 33. h4 {[%clk 0:02:12.1]}
33... Rb5 {[%clk 0:01:11.8]} 34. Ra8 {[%clk 0:02:10.6]} 34... Qb7 {[%clk
0:01:09]} 35. Qa2 {[%clk 0:02:08.1]} 35... Qd7 {[%clk 0:01:05.5]} 36. Qa7 {[%clk
0:01:52.8]} 36... Qd3 {[%clk 0:00:49.3]} 37. Qxf7 {[%clk 0:01:52.9]} 37... Qxe4+
{[%clk 0:00:26.6]} 38. Kh2 {[%clk 0:01:51.6]} 38... Qe2 {[%clk 0:00:21.5]} 39.
Kg1 {[%clk 0:01:43.3]} 39... Qd1+ {[%clk 0:00:19.2]} 40. Kg2 {[%clk 0:01:41.6]}
40... Qd5+ {[%clk 0:00:20.1]} 41. Kh2 {[%clk 0:01:41.2]} 41... Qf3 {[%clk
0:00:18.8]} 42. Be1 {[%clk 0:01:41.2]} 42... Rxb4 {[%clk 0:00:18.4]} 43. h5
{[%clk 0:01:35.5]} 43... Rh4+ {[%clk 0:00:12.3]} 44. gxh4 {[%clk 0:01:36.1]}
44... Qf4+ {[%clk 0:00:13.4]} 45. Kg2 {[%clk 0:01:35.9]} 45... Qg4+ {[%clk
0:00:14.2]} 46. Kf1 {[%clk 0:01:35.6]} 46... Qc4+ {[%clk 0:00:15]} 47. Kg1
{[%clk 0:01:36.7]} 47... Qg4+ {[%clk 0:00:16.1]} 48. Kh2 {[%clk 0:01:38.1]}
48... Qxh4+ {[%clk 0:00:16.9]} 49. Kg2 {[%clk 0:01:39.9]} 49... Qg4+ {[%clk
0:00:18.1]} 50. Kh1 {[%clk 0:01:41.3]} 50... Qh3+ {[%clk 0:00:15.5]} 51. Kg1
{[%clk 0:01:41.6]} 51... Qg4+ {[%clk 0:00:16.3]} 52. Kf1 {[%clk 0:01:42.6]}
52... Qc4+ {[%clk 0:00:17.1]} 53. Kg2 {[%clk 0:01:44.2]} 53... Qg4+ {[%clk
0:00:17.7]} 54. Kh1 {[%clk 0:01:45.3]} 54... Qh3+ {[%clk 0:00:15.4]} 55. Kg1
{[%clk 0:01:46.5]} 55... Qg4+ {[%clk 0:00:15.8]} 56. Kf1 {[%clk 0:01:46.3]}
56... Qc4+ {[%clk 0:00:15.1]} 57. Kg1 {[%clk 0:01:47.4]} 57... Qg4+ {[%clk
0:00:14.6]} 58. Kh1 {[%clk 0:01:49.3]} 58... Qh3+ {[%clk 0:00:14.8]} 59. Kg1
{[%clk 0:01:50.5]} 59... Qg4+ {[%clk 0:00:15.5]} 60. Kh2 {[%clk 0:01:51.7]}
60... Qh4+ {[%clk 0:00:15.9]} 61. Kg2 {[%clk 0:01:51.7]} 61... Qg4+ {[%clk
0:00:15.3]} 62. Kf1 {[%clk 0:01:52.5]} 62... Qc4+ {[%clk 0:00:15.3]} 1/2-1/2

[Event "*** Titled Tuesday 3|2 Blitz (Early)"]
[Site "Chess.com"]
[Date "2016.12.06"]
[Round "4"]
[White "LPSupi"]
[Black "LawrenceTrent"]
[Result "1-0"]
[WhiteElo "2603"]
[BlackElo "2437"]
[TimeControl "180+2"]
[EndTime "11:49:37 PST"]
[Termination "LPSupi won by resignation"]

1. d4 {[%clk 0:03:00.6]} 1... Nf6 {[%clk 0:03:00.8]} 2. Nf3 {[%clk 0:03:02.1]}
2... g6 {[%clk 0:03:01.2]} 3. Bg5 {[%clk 0:03:03]} 3... Bg7 {[%clk 0:03:01.2]}
4. Nbd2 {[%clk 0:03:04.1]} 4... O-O {[%clk 0:03:01.9]} 5. c3 {[%clk 0:03:03.8]}
5... d6 {[%clk 0:03:02.5]} 6. e4 {[%clk 0:03:02.7]} 6... c5 {[%clk 0:03:03.4]}
7. dxc5 {[%clk 0:03:03.7]} 7... dxc5 {[%clk 0:03:04.5]} 8. Be2 {[%clk
0:03:05.3]} 8... Qc7 {[%clk 0:03:05.4]} 9. O-O {[%clk 0:03:05.1]} 9... Nc6
{[%clk 0:03:06.4]} 10. Re1 {[%clk 0:03:03.5]} 10... b6 {[%clk 0:03:04.4]} 11.
Qc2 {[%clk 0:03:03.5]} 11... Bb7 {[%clk 0:03:04.9]} 12. Bf1 {[%clk 0:03:02.9]}
12... Rad8 {[%clk 0:02:58.2]} 13. h3 {[%clk 0:02:57.6]} 13... h6 {[%clk
0:02:58.7]} 14. Be3 {[%clk 0:02:57.6]} 14... Nh5 {[%clk 0:02:56.2]} 15. Nc4
{[%clk 0:02:47.3]} 15... Kh7 {[%clk 0:02:42.6]} 16. a4 {[%clk 0:02:44.1]} 16...
Qb8 {[%clk 0:02:29.2]} 17. a5 {[%clk 0:02:16.2]} 17... Bc8 {[%clk 0:02:14.8]}
18. axb6 {[%clk 0:02:16.3]} 18... axb6 {[%clk 0:02:15.5]} 19. Qb3 {[%clk
0:01:45.2]} 19... b5 {[%clk 0:02:08.7]} 20. Na5 {[%clk 0:01:43.6]} 20... Ne5
{[%clk 0:01:42]} 21. Nxe5 {[%clk 0:01:44.2]} 21... Bxe5 {[%clk 0:01:39.5]} 22.
Nc6 {[%clk 0:01:44]} 22... Bh2+ {[%clk 0:01:39.3]} 23. Kh1 {[%clk 0:01:44.4]}
23... Qd6 {[%clk 0:01:37.1]} 24. Nxd8 {[%clk 0:01:45.4]} 24... Rxd8 {[%clk
0:01:26.2]} 25. Qxf7+ {[%clk 0:01:45.5]} 25... Ng7 {[%clk 0:01:27.2]} 26. Rad1
{[%clk 0:01:42.5]} 26... Qxd1 {[%clk 0:01:22.5]} 27. Rxd1 {[%clk 0:01:43.2]}
27... Rxd1 {[%clk 0:01:22.6]} 28. Kxh2 {[%clk 0:01:44.3]} 28... Rxf1 {[%clk
0:01:23.6]} 29. Qxe7 {[%clk 0:01:43.2]} 29... Rd1 {[%clk 0:01:17]} 30. Bxc5
{[%clk 0:01:42.2]} 30... Rd7 {[%clk 0:01:18.3]} 31. Qe5 {[%clk 0:01:43.3]} 31...
Rf7 {[%clk 0:01:17]} 32. Bd4 {[%clk 0:01:44.3]} 32... Bd7 {[%clk 0:01:16.7]} 33.
f3 {[%clk 0:01:45.3]} 33... g5 {[%clk 0:01:16.7]} 34. Qb8 {[%clk 0:01:38.4]}
34... Ne8 {[%clk 0:01:08.8]} 35. Be5 {[%clk 0:01:33.5]} 35... h5 {[%clk
0:01:06.5]} 36. Qd8 {[%clk 0:01:32.9]} 36... Kg6 {[%clk 0:01:00.4]} 37. Bd4
{[%clk 0:01:33.6]} 37... g4 {[%clk 0:00:59.8]} 38. fxg4 {[%clk 0:01:30]} 38...
hxg4 {[%clk 0:01:00.8]} 39. h4 {[%clk 0:01:31.1]} 39... g3+ {[%clk 0:00:45.7]}
40. Kxg3 {[%clk 0:01:30.3]} 40... Kh7 {[%clk 0:00:46.4]} 41. Be5 {[%clk
0:01:27]} 41... Ng7 {[%clk 0:00:35.6]} 42. Kh2 {[%clk 0:01:23.5]} 42... Ne8
{[%clk 0:00:28.3]} 43. Kg1 {[%clk 0:01:15.9]} 43... Bc6 {[%clk 0:00:27.9]} 44.
Qg5 {[%clk 0:01:11.9]} 44... Ng7 {[%clk 0:00:20.7]} 45. Bxg7 {[%clk 0:01:07.7]}
45... Rxg7 {[%clk 0:00:21.7]} 46. Qf5+ {[%clk 0:01:08.9]} 46... Rg6 {[%clk
0:00:16.6]} 47. h5 {[%clk 0:01:07.9]} 1-0

[Event "*** Titled Tuesday 3|2 Blitz (Early)"]
[Site "Chess.com"]
[Date "2016.12.06"]
[Round "4"]
[White "Schemato"]
[Black "Divertissement"]
[Result "1-0"]
[WhiteElo "2303"]
[BlackElo "2430"]
[TimeControl "180+2"]
[EndTime "11:50:04 PST"]
[Termination "Schemato won by resignation"]

1. c4 {[%clk 0:03:02]} 1... Nf6 {[%clk 0:02:58.8]} 2. Nc3 {[%clk 0:03:02.5]}
2... c5 {[%clk 0:02:57.8]} 3. g3 {[%clk 0:03:03.4]} 3... g6 {[%clk 0:02:59.3]}
4. Bg2 {[%clk 0:03:04.8]} 4... Bg7 {[%clk 0:03:00.9]} 5. Nf3 {[%clk 0:03:06.4]}
5... O-O {[%clk 0:03:02.6]} 6. d4 {[%clk 0:03:07.6]} 6... d6 {[%clk 0:03:02.7]}
7. O-O {[%clk 0:03:06.7]} 7... Nc6 {[%clk 0:03:03.6]} 8. b3 {[%clk 0:03:03.6]}
8... Ng4 {[%clk 0:02:44.5]} 9. e3 {[%clk 0:02:53.3]} 9... e5 {[%clk 0:02:03.9]}
10. dxc5 {[%clk 0:02:28.2]} 10... e4 {[%clk 0:01:57.7]} 11. Bb2 {[%clk 0:02:06]}
11... exf3 {[%clk 0:01:55.4]} 12. Bxf3 {[%clk 0:02:06.4]} 12... Qa5 {[%clk
0:01:25.7]} 13. Bxg4 {[%clk 0:01:52.3]} 13... Bxc3 {[%clk 0:01:25.5]} 14. Bxc3
{[%clk 0:01:52.2]} 14... Qxc3 {[%clk 0:01:26.1]} 15. cxd6 {[%clk 0:01:47.4]}
15... Bxg4 {[%clk 0:01:26.4]} 16. Qxg4 {[%clk 0:01:47.6]} 16... Qf6 {[%clk
0:01:27.6]} 17. Rfd1 {[%clk 0:01:36]} 17... Rad8 {[%clk 0:01:26.1]} 18. c5
{[%clk 0:01:35.6]} 18... b6 {[%clk 0:01:20.2]} 19. b4 {[%clk 0:01:34.6]} 19...
h5 {[%clk 0:00:59.9]} 20. Qe4 {[%clk 0:01:33.2]} 20... Ne5 {[%clk 0:01:01]} 21.
Rd5 {[%clk 0:01:18.5]} 21... Nf3+ {[%clk 0:00:55.4]} 22. Kg2 {[%clk 0:01:18.7]}
22... Qxa1 {[%clk 0:00:56.5]} 23. Qxf3 {[%clk 0:01:19.5]} 23... bxc5 {[%clk
0:00:50.6]} 24. bxc5 {[%clk 0:01:19.9]} 24... Qc3 {[%clk 0:00:50.7]} 25. d7
{[%clk 0:01:11.9]} 25... Kg7 {[%clk 0:00:37.5]} 26. e4 {[%clk 0:01:11.7]} 26...
Qf6 {[%clk 0:00:17.4]} 27. Rd6 {[%clk 0:01:04.7]} 27... Qe5 {[%clk 0:00:15.4]}
28. Qe3 {[%clk 0:00:55.6]} 28... h4 {[%clk 0:00:15]} 29. f4 {[%clk 0:00:50.6]}
29... h3+ {[%clk 0:00:15.5]} 30. Kxh3 {[%clk 0:00:48.4]} 30... Rh8+ {[%clk
0:00:16.6]} 31. Kg2 {[%clk 0:00:47]} 31... Qb2+ {[%clk 0:00:17.3]} 32. Qd2
{[%clk 0:00:46.2]} 32... Qxd2+ {[%clk 0:00:09.9]} 33. Rxd2 {[%clk 0:00:48.1]}
33... Kf6 {[%clk 0:00:11.5]} 34. c6 {[%clk 0:00:43.3]} 34... Ke7 {[%clk
0:00:13.4]} 35. e5 {[%clk 0:00:37.1]} 35... a5 {[%clk 0:00:10.8]} 36. g4 {[%clk
0:00:34.7]} 36... a4 {[%clk 0:00:11.5]} 37. f5 {[%clk 0:00:35.3]} 37... gxf5
{[%clk 0:00:13.2]} 38. gxf5 {[%clk 0:00:36.4]} 38... Rhg8+ {[%clk 0:00:14]} 39.
Kf3 {[%clk 0:00:36.9]} 39... Rg1 {[%clk 0:00:09.4]} 40. c7 {[%clk 0:00:32.9]}
40... Rgg8 {[%clk 0:00:07.4]} 41. cxd8=Q+ {[%clk 0:00:30.5]} 41... Kxd8 {[%clk
0:00:09.3]} 42. e6 {[%clk 0:00:25.4]} 42... fxe6 {[%clk 0:00:11.2]} 43. fxe6
{[%clk 0:00:27.2]} 43... Rg7 {[%clk 0:00:12]} 44. Kf4 {[%clk 0:00:25.5]} 44...
Rh7 {[%clk 0:00:12.5]} 45. Ke5 {[%clk 0:00:24.7]} 45... a3 {[%clk 0:00:14.1]}
46. Rc2 {[%clk 0:00:22.5]} 46... Ke7 {[%clk 0:00:15.4]} 47. Rc8 {[%clk
0:00:18.5]} 47... Rh5+ {[%clk 0:00:17]} 48. Kf4 {[%clk 0:00:18.8]} 48... Rh4+
{[%clk 0:00:18.2]} 49. Kg3 {[%clk 0:00:19.6]} 49... Rd4 {[%clk 0:00:19.6]} 50.
d8=Q+ {[%clk 0:00:16.6]} 50... Rxd8 {[%clk 0:00:19.7]} 51. Rxd8 {[%clk
0:00:18.5]} 51... Kxd8 {[%clk 0:00:21.6]} 52. Kf4 {[%clk 0:00:20.4]} 52... Ke7
{[%clk 0:00:22.9]} 53. Ke5 {[%clk 0:00:22]} 1-0

[Event "*** Titled Tuesday 3|2 Blitz (Early)"]
[Site "Chess.com"]
[Date "2016.12.06"]
[Round "4"]
[White "Zhani-Z"]
[Black "BjarkeSahl"]
[Result "1-0"]
[WhiteElo "2279"]
[BlackElo "2149"]
[TimeControl "180+2"]
[EndTime "11:50:24 PST"]
[Termination "Zhani-Z won by resignation"]

1. d4 {[%clk 0:02:54.8]} 1... Nf6 {[%clk 0:02:57.2]} 2. c4 {[%clk 0:02:55]} 2...
e6 {[%clk 0:02:58.3]} 3. Nc3 {[%clk 0:02:54.4]} 3... Be7 {[%clk 0:02:58]} 4. e4
{[%clk 0:02:54]} 4... O-O {[%clk 0:02:57.5]} 5. Nf3 {[%clk 0:02:53]} 5... d5
{[%clk 0:02:56.9]} 6. e5 {[%clk 0:02:45.5]} 6... Ne4 {[%clk 0:02:57.9]} 7. Bd3
{[%clk 0:02:44.5]} 7... Nxc3 {[%clk 0:02:53.8]} 8. bxc3 {[%clk 0:02:45.1]} 8...
dxc4 {[%clk 0:02:54.7]} 9. Bxc4 {[%clk 0:02:44]} 9... c5 {[%clk 0:02:56.3]} 10.
h4 {[%clk 0:02:28.6]} 10... Nc6 {[%clk 0:02:54.7]} 11. Bd3 {[%clk 0:02:25.5]}
11... h6 {[%clk 0:02:14.3]} 12. Qe2 {[%clk 0:02:25.2]} 12... cxd4 {[%clk
0:01:47.2]} 13. Qe4 {[%clk 0:02:04]} 13... g6 {[%clk 0:01:21.1]} 14. cxd4 {[%clk
0:02:04.2]} 14... Nb4 {[%clk 0:01:10.1]} 15. Bxh6 {[%clk 0:02:01.5]} 15... Nxd3+
{[%clk 0:01:10.5]} 16. Qxd3 {[%clk 0:02:01.4]} 16... Bd7 {[%clk 0:01:09.7]} 17.
h5 {[%clk 0:01:54.9]} 17... Qa5+ {[%clk 0:01:10.3]} 18. Bd2 {[%clk 0:01:54.4]}
18... Qb5 {[%clk 0:01:03.7]} 19. Qe4 {[%clk 0:01:52.8]} 19... Bc6 {[%clk
0:00:58.9]} 20. Qg4 {[%clk 0:01:29.6]} 20... Qd3 {[%clk 0:00:59.6]} 21. hxg6
{[%clk 0:01:26.9]} 21... Qe4+ {[%clk 0:00:54.6]} 22. Qxe4 {[%clk 0:01:26.7]}
22... Bxe4 {[%clk 0:00:56]} 23. gxf7+ {[%clk 0:00:55.4]} 23... Rxf7 {[%clk
0:00:56]} 24. Rc1 {[%clk 0:00:50.9]} 24... Bc6 {[%clk 0:00:49]} 25. Rh6 {[%clk
0:00:40.4]} 25... Ba3 {[%clk 0:00:32.2]} 26. Rc3 {[%clk 0:00:24]} 26... Bb4
{[%clk 0:00:29]} 27. Rc4 {[%clk 0:00:24.7]} 27... Bxd2+ {[%clk 0:00:28.9]} 28.
Nxd2 {[%clk 0:00:25.6]} 28... Bd5 {[%clk 0:00:28]} 29. Rc2 {[%clk 0:00:20.9]}
29... Raf8 {[%clk 0:00:27.6]} 30. f3 {[%clk 0:00:21.4]} 30... Rg7 {[%clk
0:00:27.2]} 31. Kf2 {[%clk 0:00:20.9]} 31... Rd8 {[%clk 0:00:17.7]} 32. g4
{[%clk 0:00:18.9]} 32... Rf7 {[%clk 0:00:11.1]} 33. Ke3 {[%clk 0:00:19.5]} 33...
Bc6 {[%clk 0:00:11.9]} 34. f4 {[%clk 0:00:18.3]} 34... Rfd7 {[%clk 0:00:13]} 35.
Nb3 {[%clk 0:00:15.9]} 35... Rg7 {[%clk 0:00:10.1]} 36. g5 {[%clk 0:00:15.5]}
36... Kf7 {[%clk 0:00:10.7]} 37. Rf6+ {[%clk 0:00:14.7]} 37... Ke7 {[%clk
0:00:11.5]} 38. Rh6 {[%clk 0:00:15.5]} 38... Rf8 {[%clk 0:00:12.2]} 39. Nc5
{[%clk 0:00:16.2]} 39... Bd5 {[%clk 0:00:11.5]} 40. Ne4 {[%clk 0:00:17.2]} 40...
Bc6 {[%clk 0:00:12.1]} 41. Nf6 {[%clk 0:00:17.5]} 41... Rd8 {[%clk 0:00:13.7]}
42. g6 {[%clk 0:00:17.5]} 42... a5 {[%clk 0:00:12.8]} 43. Rch2 {[%clk
0:00:16.6]} 43... a4 {[%clk 0:00:10.5]} 44. Rh7 {[%clk 0:00:17.5]} 1-0

[Event "*** Titled Tuesday 3|2 Blitz (Early)"]
[Site "Chess.com"]
[Date "2016.12.06"]
[Round "4"]
[White "Generalas"]
[Black "norwaytoadog"]
[Result "1-0"]
[WhiteElo "2209"]
[BlackElo "1925"]
[TimeControl "180+2"]
[EndTime "11:50:24 PST"]
[Termination "Generalas won on time"]

1. Nf3 {[%clk 0:03:02]} 1... Nc6 {[%clk 0:02:58.1]} 2. g3 {[%clk 0:03:01.5]}
2... e5 {[%clk 0:02:57.9]} 3. Bg2 {[%clk 0:02:59.4]} 3... Nf6 {[%clk 0:02:58.6]}
4. O-O {[%clk 0:02:59.7]} 4... d5 {[%clk 0:02:59.3]} 5. d4 {[%clk 0:02:59.8]}
5... e4 {[%clk 0:02:59.2]} 6. Ne1 {[%clk 0:03:00.6]} 6... Be7 {[%clk 0:02:55.4]}
7. f3 {[%clk 0:02:45.9]} 7... O-O {[%clk 0:02:54.1]} 8. Be3 {[%clk 0:02:40.5]}
8... Bf5 {[%clk 0:02:42.7]} 9. Nd2 {[%clk 0:02:38.9]} 9... h5 {[%clk 0:02:36.2]}
10. c4 {[%clk 0:02:36.2]} 10... Qd7 {[%clk 0:02:29.9]} 11. fxe4 {[%clk
0:02:01.5]} 11... dxe4 {[%clk 0:02:11.7]} 12. d5 {[%clk 0:01:32.1]} 12... Ne5
{[%clk 0:02:10.8]} 13. Bd4 {[%clk 0:01:32.3]} 13... Neg4 {[%clk 0:00:49.4]} 14.
Nc2 {[%clk 0:01:26]} 14... Rfe8 {[%clk 0:00:42.9]} 15. e3 {[%clk 0:01:08]} 15...
c5 {[%clk 0:00:36.3]} 16. dxc6 {[%clk 0:01:03]} 16... bxc6 {[%clk 0:00:37]} 17.
h3 {[%clk 0:00:57.1]} 17... Nh6 {[%clk 0:00:35.1]} 18. Kh2 {[%clk 0:00:57.7]}
18... h4 {[%clk 0:00:32.2]} 19. g4 {[%clk 0:00:54.9]} 19... Qd6+ {[%clk
0:00:25.5]} 20. Rf4 {[%clk 0:00:48.7]} 20... g5 {[%clk 0:00:23.3]} 21. Bxf6
{[%clk 0:00:18.3]} 21... Bxf6 {[%clk 0:00:22.4]} 22. Nxe4 {[%clk 0:00:13.4]}
22... Qxd1 {[%clk 0:00:15.6]} 23. Nxf6+ {[%clk 0:00:14.3]} 23... Kh8 {[%clk
0:00:15.3]} 24. Rxd1 {[%clk 0:00:14.4]} 24... gxf4 {[%clk 0:00:15.7]} 25. Nxe8
{[%clk 0:00:12.5]} 25... Bxc2 {[%clk 0:00:15.9]} 26. Rd2 {[%clk 0:00:11.9]}
26... Bg6 {[%clk 0:00:14.4]} 27. Nf6 {[%clk 0:00:07.6]} 27... fxe3 {[%clk
0:00:14.5]} 28. Re2 {[%clk 0:00:06.9]} 28... Kg7 {[%clk 0:00:14.9]} 29. Nd7
{[%clk 0:00:05.7]} 29... Re8 {[%clk 0:00:13.9]} 30. Bxc6 {[%clk 0:00:05.8]}
30... Bd3 {[%clk 0:00:14.3]} 31. Re1 {[%clk 0:00:06.8]} 31... e2 {[%clk
0:00:14.1]} 32. Bf3 {[%clk 0:00:06.4]} 32... Bxc4 {[%clk 0:00:13.9]} 33. b3
{[%clk 0:00:06.5]} 33... Bb5 {[%clk 0:00:13.4]} 34. Nc5 {[%clk 0:00:07.1]} 34...
Rd8 {[%clk 0:00:13.1]} 35. Kg2 {[%clk 0:00:07.1]} 35... Rd1 {[%clk 0:00:13.2]}
36. Kf2 {[%clk 0:00:08.2]} 36... Rxe1 {[%clk 0:00:13.7]} 37. Kxe1 {[%clk
0:00:09.3]} 37... Kf6 {[%clk 0:00:13.9]} 38. Bxe2 {[%clk 0:00:10.5]} 38... Bc6
{[%clk 0:00:12.2]} 39. Kf2 {[%clk 0:00:11]} 39... Ke5 {[%clk 0:00:13.1]} 40.
Nd3+ {[%clk 0:00:11.4]} 40... Kd4 {[%clk 0:00:13.9]} 41. Nf4 {[%clk 0:00:11.9]}
41... Kc3 {[%clk 0:00:13.9]} 42. Ng2 {[%clk 0:00:12.8]} 42... f5 {[%clk
0:00:13.1]} 43. g5 {[%clk 0:00:13.1]} 43... Ng8 {[%clk 0:00:11.5]} 44. Nxh4
{[%clk 0:00:13.4]} 44... Be4 {[%clk 0:00:11.4]} 45. Bf3 {[%clk 0:00:12.1]} 45...
Bb1 {[%clk 0:00:12.2]} 46. Ke3 {[%clk 0:00:10.9]} 46... Kb2 {[%clk 0:00:13.2]}
47. Bd5 {[%clk 0:00:11]} 47... Kxa2 {[%clk 0:00:13.7]} 48. Bxg8 {[%clk
0:00:11.7]} 48... Ka3 {[%clk 0:00:14.8]} 49. Kf4 {[%clk 0:00:11.9]} 49... Kb4
{[%clk 0:00:15.2]} 50. Nxf5 {[%clk 0:00:12.8]} 50... Kc5 {[%clk 0:00:16.1]} 51.
g6 {[%clk 0:00:13.7]} 51... a5 {[%clk 0:00:09.3]} 52. g7 {[%clk 0:00:14.7]}
52... Kc6 {[%clk 0:00:06.9]} 53. Bf7 {[%clk 0:00:15.6]} 1-0

[Event "*** Titled Tuesday 3|2 Blitz (Early)"]
[Site "Chess.com"]
[Date "2016.12.06"]
[Round "4"]
[White "VitaliyBernadskiy"]
[Black "platy3"]
[Result "1/2-1/2"]
[WhiteElo "2578"]
[BlackElo "2696"]
[TimeControl "180+2"]
[EndTime "11:50:30 PST"]
[Termination "Game drawn by repetition"]

1. e4 {[%clk 0:03:00.5]} 1... c5 {[%clk 0:03:00.2]} 2. Nf3 {[%clk 0:03:01.2]}
2... e6 {[%clk 0:03:01.8]} 3. d4 {[%clk 0:03:02]} 3... cxd4 {[%clk 0:03:03.7]}
4. Nxd4 {[%clk 0:03:03.6]} 4... a6 {[%clk 0:03:05.4]} 5. c4 {[%clk 0:03:04.1]}
5... Nf6 {[%clk 0:03:06]} 6. Nc3 {[%clk 0:03:05.6]} 6... Qc7 {[%clk 0:03:07.6]}
7. Be2 {[%clk 0:03:02]} 7... b6 {[%clk 0:03:09]} 8. O-O {[%clk 0:03:01.3]} 8...
Bb7 {[%clk 0:03:10.3]} 9. Qd3 {[%clk 0:03:02.3]} 9... Be7 {[%clk 0:03:06]} 10.
f4 {[%clk 0:03:01.6]} 10... d6 {[%clk 0:03:06.4]} 11. Be3 {[%clk 0:02:59]} 11...
Nbd7 {[%clk 0:03:02.8]} 12. b4 {[%clk 0:02:59.7]} 12... Rd8 {[%clk 0:03:00.2]}
13. Nb3 {[%clk 0:02:55]} 13... h5 {[%clk 0:02:57.1]} 14. h3 {[%clk 0:02:53.2]}
14... Qb8 {[%clk 0:02:56.2]} 15. Bf3 {[%clk 0:02:31.5]} 15... Qa8 {[%clk
0:02:55.2]} 16. a4 {[%clk 0:02:24.5]} 16... g5 {[%clk 0:02:47.7]} 17. fxg5
{[%clk 0:02:19.1]} 17... Ne5 {[%clk 0:02:49.1]} 18. Qe2 {[%clk 0:02:09.6]} 18...
Nxe4 {[%clk 0:02:33.4]} 19. Nxe4 {[%clk 0:02:09.1]} 19... Bxe4 {[%clk
0:02:35.3]} 20. Bxb6 {[%clk 0:02:09.9]} 20... Bxf3 {[%clk 0:02:32.4]} 21. gxf3
{[%clk 0:02:09.9]} 21... Rb8 {[%clk 0:02:28.8]} 22. a5 {[%clk 0:02:08.8]} 22...
Bxg5 {[%clk 0:02:06.4]} 23. f4 {[%clk 0:02:07.9]} 23... Bh4 {[%clk 0:01:54.7]}
24. Kh2 {[%clk 0:01:47.2]} 24... Rg8 {[%clk 0:01:55.5]} 25. Rg1 {[%clk
0:01:38.5]} 25... Nf3+ {[%clk 0:01:52.8]} 26. Qxf3 {[%clk 0:01:39.3]} 26... Qxf3
{[%clk 0:01:54.7]} 27. Rxg8+ {[%clk 0:01:40.2]} 27... Ke7 {[%clk 0:01:51.7]} 28.
Rxb8 {[%clk 0:01:30.6]} 28... Qxf4+ {[%clk 0:01:23]} 29. Kh1 {[%clk 0:01:21.2]}
29... Qf3+ {[%clk 0:01:21]} 30. Kh2 {[%clk 0:01:12.5]} 30... Qg3+ {[%clk
0:01:17.8]} 31. Kh1 {[%clk 0:01:13.6]} 31... Qxh3+ {[%clk 0:01:19.7]} 32. Kg1
{[%clk 0:01:14.9]} 32... Qg3+ {[%clk 0:01:20.2]} 33. Kh1 {[%clk 0:01:14.4]}
33... Qxb3 {[%clk 0:01:15.3]} 34. Rf1 {[%clk 0:01:03.4]} 34... f5 {[%clk
0:01:06.2]} 35. Bd8+ {[%clk 0:00:46.3]} 35... Kd7 {[%clk 0:01:05.6]} 36. Bxh4
{[%clk 0:00:46.9]} 36... Qxc4 {[%clk 0:01:02.3]} 37. Kg2 {[%clk 0:00:25.1]}
37... Qg4+ {[%clk 0:00:48.9]} 38. Bg3 {[%clk 0:00:25.9]} 38... h4 {[%clk
0:00:50.2]} 39. b5 {[%clk 0:00:16]} 39... Qxg3+ {[%clk 0:00:50.7]} 40. Kh1
{[%clk 0:00:17.4]} 40... Qh3+ {[%clk 0:00:32.9]} 41. Kg1 {[%clk 0:00:17.8]}
41... Qe3+ {[%clk 0:00:34.8]} 42. Kh1 {[%clk 0:00:17.2]} 42... h3 {[%clk
0:00:17.6]} 43. Rg1 {[%clk 0:00:08]} 43... Qf3+ {[%clk 0:00:18.9]} 44. Kh2
{[%clk 0:00:08.9]} 44... Qf2+ {[%clk 0:00:20.4]} 45. Kh1 {[%clk 0:00:10.1]}
45... axb5 {[%clk 0:00:19.7]} 46. a6 {[%clk 0:00:08.8]} 46... Kc6 {[%clk
0:00:18.6]} 47. Rc1+ {[%clk 0:00:08.8]} 47... Kd7 {[%clk 0:00:11.9]} 48. Rb7+
{[%clk 0:00:09.2]} 48... Kd8 {[%clk 0:00:13.4]} 49. Rg1 {[%clk 0:00:09.6]} 49...
Qf3+ {[%clk 0:00:11.8]} 50. Kh2 {[%clk 0:00:10.9]} 50... Qf2+ {[%clk 0:00:10.9]}
51. Kh1 {[%clk 0:00:12.2]} 51... Qf3+ {[%clk 0:00:09.9]} 52. Kh2 {[%clk
0:00:12.9]} 52... Qf2+ {[%clk 0:00:11.3]} 53. Kh1 {[%clk 0:00:09.8]} 1/2-1/2